bitfinex/quotes_BTCUSD_20251226
["timestamp","ask_amount","ask_price","bid_price","bid_amount"]
[1766723479367,0.01128,88776.0,88770.0,0.13057506]
[1766723479497,0.01355082,88775.0,88770.0,0.13057506]
[1766723479695,0.01355082,88775.0,88772.0,0.01126481]
[1766723479896,0.00604914,88775.0,88772.0,0.13057481]
[1766723480123,0.00604914,88775.0,88772.0,0.18689885]
[1766723480327,0.0002,88780.0,88775.0,0.00055]
[1766723480684,0.0002,88780.0,88775.0,0.13057443]
[1766723481041,0.0002,88780.0,88777.0,0.01126417]
[1766723481244,0.0002,88780.0,88775.0,0.13057443]
[1766723481245,1.16e-06,88781.0,88780.0,0.0002]
[1766723481461,0.0002,88783.0,88781.0,0.00028984]
[1766723481692,0.000141,88783.0,88781.0,0.00028984]
[1766723482013,0.02501322,88791.0,88786.0,0.01126303]
[1766723482014,0.00044493,88789.0,88786.0,0.01126303]
[1766723482214,0.00044493,88789.0,88786.0,0.11931]
[1766723482380,0.00044493,88789.0,88787.0,0.11931]
[1766723482381,9.3e-07,88789.0,88787.0,0.11931]
[1766723484267,9.3e-07,88789.0,88787.0,0.118807]
[1766723484705,9.3e-07,88789.0,88777.0,0.01128]
[1766723484706,0.01126354,88782.0,88777.0,0.01128]
[1766723484905,0.01126341,88783.0,88775.0,0.11931]
[1766723485068,0.01126354,88782.0,88775.0,0.11931]
[1766723485271,0.01126354,88782.0,88776.0,0.01128]
[1766723485473,0.01126367,88781.0,88775.0,0.11931]
[1766723485673,0.01126354,88782.0,88777.0,0.01128]
[1766723485674,0.01126379,88780.0,88777.0,0.01128]
[1766723485869,0.01126367,88781.0,88777.0,0.01128]
[1766723486186,0.01126367,88781.0,88775.0,0.11931]
[1766723486384,0.01126379,88780.0,88775.0,0.11931]
[1766723486591,0.01126392,88779.0,88776.0,0.01128]
[1766723486901,0.01126379,88780.0,88776.0,0.01128]
[1766723487102,0.01126392,88779.0,88776.0,0.01128]
[1766723487815,0.01126379,88780.0,88776.0,0.01128]
[1766723488029,0.01126367,88781.0,88776.0,0.01128]
[1766723488241,0.01126354,88782.0,88776.0,0.01128]
[1766723488596,0.01126341,88783.0,88776.0,0.01128]
[1766723488826,0.01126341,88783.0,88776.0,0.13059]
[1766723489436,0.01126329,88784.0,88776.0,0.13059]
[1766723490004,0.01126316,88785.0,88776.0,0.13032374]
[1766723490845,0.01126329,88784.0,88776.0,0.13032374]
[1766723491051,0.01126379,88780.0,88774.0,0.01128]
[1766723491201,0.01126367,88781.0,88774.0,0.01128]
[1766723491402,0.01126354,88782.0,88774.0,0.01128]
[1766723492008,0.06758049,88783.0,88774.0,0.01128]
[1766723492009,0.05631636,88785.0,88774.0,0.02254455]
[1766723492350,0.01126341,88783.0,88775.0,0.01128]
[1766723492557,0.01126354,88782.0,88775.0,0.01128]
[1766723492906,0.01126354,88782.0,88775.0,0.010731]
[1766723493106,0.01126367,88781.0,88775.0,0.010731]
[1766723493305,0.01126354,88782.0,88775.0,0.010731]
[1766723494331,0.01126341,88783.0,88775.0,0.010731]
[1766723494515,0.01126354,88782.0,88775.0,0.010731]
[1766723494716,0.01126367,88781.0,88775.0,0.010731]
[1766723495449,0.01126379,88780.0,88775.0,0.010731]
[1766723495644,0.01126354,88782.0,88775.0,0.010731]
[1766723497377,0.01126341,88783.0,88776.0,0.11931]
[1766723497582,0.01126354,88782.0,88776.0,0.11931]
[1766723498367,0.01126341,88783.0,88776.0,0.11931]
[1766723498868,0.01126354,88782.0,88776.0,0.11931]
[1766723499590,0.01126341,88783.0,88776.0,0.11931]
[1766723499955,0.01126354,88782.0,88776.0,0.11931]
[1766723500359,0.01126341,88783.0,88776.0,0.11931]
[1766723500691,0.05631943,88780.0,88775.0,0.010731]
[1766723500854,0.05631855,88781.0,88775.0,1e-06]
[1766723501053,0.01126354,88782.0,88769.0,0.11931]
[1766723501054,0.2252685,88783.0,88772.0,0.01128]
[1766723501268,0.01126455,88774.0,88769.0,0.01128]
[1766723501456,0.01126455,88774.0,88763.0,0.13057595]
[1766723501457,0.05632343,88773.0,88768.0,0.01128]
[1766723501676,0.01126455,88774.0,88768.0,0.01128]
[1766723501856,0.01126455,88774.0,88757.0,0.01126671]
[1766723501857,0.01181532,88768.0,88760.0,0.01128]
[1766723502193,0.01181532,88768.0,88760.0,0.01138763]
[1766723502194,0.01126532,88768.0,88760.0,0.01138763]
[1766723503104,0.01126557,88766.0,88760.0,0.01138763]
[1766723504034,0.01126557,88766.0,88757.0,0.11931]
[1766723504035,0.01126582,88764.0,88757.0,0.11931]
[1766723504222,0.06759301,88767.0,88757.0,0.11931]
[1766723504383,0.01126519,88769.0,88757.0,0.18690995]
[1766723504577,0.00010757,88769.0,88758.0,0.05633238]
[1766723504880,0.00028277,88767.0,88760.0,0.01126633]
[1766723505077,0.00028277,88767.0,88761.0,0.0112662]
[1766723505462,0.01128,88770.0,88765.0,0.0112657]
[1766723505688,0.00627959,88770.0,88765.0,0.0112657]
[1766723506098,0.00627959,88770.0,88766.0,0.01126557]
[1766723506307,0.00627959,88770.0,88767.0,0.01126544]
[1766723507051,0.00627959,88770.0,88766.0,0.01126557]
[1766723507253,0.00627959,88770.0,88765.0,0.0112657]
[1766723507398,0.01355082,88774.0,88765.0,0.0112657]
[1766723507602,0.03609537,88774.0,88765.0,0.0112657]
[1766723507831,0.02483082,88774.0,88765.0,0.0112657]
[1766723508035,0.02483082,88774.0,88766.0,0.01126557]
[1766723508455,0.02483082,88774.0,88764.0,0.01126582]
[1766723508635,0.02483082,88774.0,88766.0,0.01126557]
[1766723508849,0.02483082,88774.0,88764.0,0.01126582]
[1766723509146,0.01128,88774.0,88766.0,0.12566557]
[1766723509307,0.01128,88774.0,88766.0,0.1144]
[1766723509708,0.02483082,88774.0,88766.0,0.1144]
[1766723510116,0.02483082,88774.0,88767.0,0.01126544]
[1766723510828,0.02483082,88774.0,88766.0,0.12566557]
[1766723511028,0.02300631,88774.0,88768.0,0.01126532]
[1766723511228,0.01128,88779.0,88773.0,0.01126468]
[1766723511913,0.01128,88779.0,88772.0,0.01126481]
[1766723512114,0.06986545,88789.0,88775.0,0.12566443]
[1766723512315,0.06986545,88789.0,88778.0,0.01126405]
[1766723512316,0.01128,88785.0,88778.0,0.01126405]
[1766723512668,0.01128,88785.0,88779.0,0.01126392]
[1766723512829,0.01128,88785.0,88778.0,0.01126405]
[1766723513363,0.02254316,88785.0,88777.0,0.1144]
[1766723513964,0.01128,88785.0,88777.0,0.12566417]
[1766723514109,0.01128,88785.0,88778.0,0.01126405]
[1766723514314,0.01128,88785.0,88778.0,0.12566405]
[1766723514515,0.01128,88785.0,88778.0,0.1144]
[1766723514716,0.02254316,88785.0,88778.0,0.1144]
[1766723515181,0.01126329,88784.0,88774.0,0.01126455]
[1766723515373,0.02254316,88785.0,88698.0,0.05355082]
[1766723515374,0.01126354,88782.0,88771.0,0.12568]
[1766723515569,0.01126367,88781.0,88771.0,0.12568]
[1766723515771,0.01126354,88782.0,88772.0,0.01126481]
[1766723516072,0.01126354,88782.0,88771.0,0.13694494]
[1766723516273,0.01126329,88784.0,88774.0,0.01126455]
[1766723516482,0.01126341,88783.0,88773.0,0.01126468]
[1766723516698,0.02254316,88785.0,88773.0,0.06758774]
[1766723516982,0.01128,88785.0,88776.0,0.0112643]
[1766723517184,0.01126329,88784.0,88774.0,0.01126455]
[1766723517411,0.02254316,88785.0,88774.0,0.01126455]
[1766723518186,0.01126329,88784.0,88775.0,0.01126443]
[1766723518690,0.01126329,88784.0,88774.0,0.01126455]
[1766723519454,0.01126329,88784.0,88775.0,0.01126443]
[1766723519901,0.01126329,88784.0,88774.0,0.01126455]
[1766723520106,0.01126329,88784.0,88775.0,0.01126443]
[1766723520322,0.01128,88785.0,88775.0,0.01126443]
[1766723520696,0.01128,88785.0,88776.0,0.0112643]
[1766723520897,0.02254316,88785.0,88775.0,0.01126443]
[1766723521098,0.02254316,88785.0,88776.0,0.0112643]
[1766723521099,0.01128,88785.0,88776.0,0.0112643]
[1766723521856,0.01128,88785.0,88775.0,0.01126443]
[1766723522128,0.02254316,88785.0,88776.0,0.0112643]
[1766723522615,0.01128,88785.0,88776.0,0.0112643]
[1766723522817,0.01128,88785.0,88776.0,0.06758531]
[1766723523017,0.01128,88785.0,88777.0,0.01126417]
[1766723523223,0.01128,88784.0,88779.0,0.01126392]
[1766723523655,0.01128,88783.0,88779.0,0.01126392]
[1766723523844,0.02483175,88789.0,88781.0,0.01126367]
[1766723524086,0.01128,88788.0,88783.0,0.000549]
[1766723524241,0.01128,88788.0,88779.0,0.06758309]
[1766723524439,0.01128,88788.0,88779.0,0.01126392]
[1766723524823,0.02254278,88788.0,88778.0,0.1144]
[1766723525022,0.01126291,88787.0,88777.0,0.01126417]
[1766723525223,0.02254278,88788.0,88778.0,0.01126405]
[1766723525432,0.01128,88788.0,88780.0,0.01126379]
[1766723525651,0.01128,88788.0,88778.0,0.01126405]
[1766723525852,0.02254278,88788.0,88778.0,0.01126405]
[1766723526247,0.02254278,88788.0,88775.0,0.056322]
[1766723526454,0.01126303,88786.0,88775.0,0.06758643]
[1766723526653,0.01126303,88786.0,88775.0,0.01126443]
[1766723527282,0.01126291,88787.0,88776.0,0.0112643]
[1766723527926,0.01126303,88786.0,88776.0,0.0112643]
[1766723528131,0.05631684,88784.0,88772.0,0.1144]
[1766723528307,0.01126303,88786.0,88772.0,0.1144]
[1766723528468,0.01126341,88783.0,88774.0,0.01126455]
[1766723528676,0.01126303,88786.0,88774.0,0.01126455]
[1766723528875,0.02254278,88788.0,88778.0,0.01126405]
[1766723529297,0.01128,88788.0,88778.0,0.01126405]
[1766723529618,0.01128,88788.0,88779.0,0.01126392]
[1766723529770,0.01128,88788.0,88778.0,0.01126405]
[1766723529973,0.01128,88788.0,88779.0,0.01126392]
[1766723530173,0.01128,88788.0,88778.0,0.01126405]
[1766723530390,0.01128,88788.0,88780.0,0.01126379]
[1766723530592,0.01128,88788.0,88779.0,0.01126392]
[1766723531436,0.01128,88788.0,88780.0,0.01126379]
[1766723531773,0.01128,88788.0,88779.0,0.01126392]
[1766723532031,0.01128,88788.0,88772.0,0.01126481]
[1766723532032,0.000549,88779.0,88772.0,0.01126481]
[1766723532213,0.000549,88779.0,88771.0,0.02254494]
[1766723532576,0.01126341,88783.0,88771.0,0.07886912]
[1766723532979,0.01126329,88784.0,88774.0,0.01126455]
[1766723533185,0.02483082,88788.0,88777.0,0.01126417]
[1766723533626,0.02483082,88788.0,88779.0,0.01126392]
[1766723533825,0.000549,88779.0,88774.0,0.01126455]
[1766723534089,0.02483082,88788.0,88776.0,0.0112643]
[1766723534090,0.06757792,88787.0,88776.0,0.0112643]
[1766723534284,0.01126303,88786.0,88777.0,0.01126417]
[1766723534538,0.01126303,88786.0,88776.0,0.0112643]
[1766723534747,0.01126303,88786.0,88771.0,0.18200448]
[1766723534748,0.06757923,88785.0,88771.0,0.18200448]
[1766723534899,0.01126329,88784.0,88774.0,0.01126455]
[1766723535101,0.06757923,88785.0,88775.0,0.01126443]
[1766723535315,0.01126316,88785.0,88775.0,0.01126443]
[1766723535715,0.01126329,88784.0,88774.0,0.01126455]
[1766723536038,0.01126329,88784.0,88775.0,0.01126443]
[1766723536219,0.01126316,88785.0,88775.0,0.01126443]
[1766723536902,0.01126329,88784.0,88775.0,0.01126443]
[1766723537105,0.01126316,88785.0,88775.0,0.01126443]
[1766723537373,0.01126303,88786.0,88774.0,0.06758732]
[1766723537576,0.01126316,88785.0,88775.0,0.01126443]
[1766723539237,0.0360936,88788.0,88777.0,0.01126417]
[1766723539414,0.02483082,88788.0,88778.0,0.01126405]
[1766723539777,0.01126291,88787.0,88774.0,0.06758732]
[1766723539930,0.01126303,88786.0,88774.0,0.06758732]
[1766723540119,0.01126303,88786.0,88775.0,0.01126443]
[1766723540576,0.01126329,88784.0,88772.0,0.06758864]
[1766723540979,0.0675799,88784.0,88771.0,0.01128]
[1766723541180,0.01126354,88782.0,88770.0,0.01128]
[1766723541591,0.01126341,88783.0,88773.0,0.01126468]
[1766723542286,0.01126354,88782.0,88772.0,0.01126481]
[1766723542611,0.01126316,88785.0,88772.0,0.01126481]
[1766723542774,0.01126341,88783.0,88773.0,0.01126468]
[1766723545494,0.01126354,88782.0,88772.0,0.01126481]
[1766723545954,0.01126341,88783.0,88773.0,0.01126468]
[1766723546560,0.01126367,88781.0,88770.0,0.01128]
[1766723546788,0.01355082,88774.0,88765.0,0.12165]
[1766723546929,0.01355082,88774.0,88757.0,0.22533393]
[1766723546930,0.01126557,88766.0,88754.0,0.01126709]
[1766723547124,0.00055,88770.0,88754.0,0.01126709]
[1766723547125,0.4030194,88770.0,88758.0,0.05633259]
[1766723547364,0.4024694,88770.0,88760.0,0.01126633]
[1766723547664,0.06760386,88773.0,88762.0,0.01126608]
[1766723547868,0.01128,88773.0,88763.0,0.01126595]
[1766723548170,0.01126481,88772.0,88761.0,0.0112662]
[1766723549074,0.01128,88773.0,88763.0,0.01126595]
[1766723549282,0.01128,88773.0,88765.0,0.06759404]
[1766723549983,0.01128,88773.0,88767.0,0.01126544]
[1766723550296,0.01128,88773.0,88768.0,0.01126532]
[1766723550531,0.01128,88774.0,88769.0,0.01126519]
[1766723550710,0.01355082,88781.0,88777.0,0.01126417]
[1766723550882,0.01128,88781.0,88776.0,0.0112643]
[1766723551053,0.01128,88781.0,88775.0,0.01126443]
[1766723552270,0.06986511,88788.0,88775.0,0.01126443]
[1766723552271,0.08112793,88788.0,88776.0,0.0112643]
[1766723552472,0.01128,88787.0,88776.0,0.0112643]
[1766723552675,0.08112793,88788.0,88776.0,0.0112643]
[1766723552894,0.01126303,88786.0,88777.0,0.01126417]
[1766723553098,0.01126303,88786.0,88776.0,0.0112643]
[1766723553299,0.01128,88785.0,88777.0,0.01126417]
[1766723553681,0.01128,88785.0,88779.0,0.01126392]
[1766723553879,0.01128,88785.0,88777.0,0.01126417]
[1766723554078,0.01128,88785.0,88778.0,0.01126405]
[1766723554288,0.01128,88785.0,88777.0,0.01126417]
[1766723554902,0.01128,88785.0,88778.0,0.01126405]
[1766723555099,0.01128,88785.0,88777.0,0.01126417]
[1766723555269,0.01128,88785.0,88778.0,0.01126405]
[1766723555469,0.01128,88785.0,88779.0,0.01126392]
[1766723555674,0.01128,88785.0,88780.0,0.01126379]
[1766723556076,0.00016934,88784.0,88780.0,0.01126379]
[1766723556276,0.00016934,88784.0,88779.0,0.01126392]
[1766723556529,0.00016934,88784.0,88780.0,0.01126379]
[1766723557010,9.3e-07,88789.0,88786.0,0.01126303]
[1766723557169,9.3e-07,88789.0,88785.0,0.01126316]
[1766723557333,9.3e-07,88789.0,88786.0,0.01126303]
[1766723557872,9.3e-07,88789.0,88785.0,0.01126316]
[1766723558074,9.3e-07,88789.0,88786.0,0.01126303]
[1766723559128,9.3e-07,88789.0,88784.0,0.05631593]
[1766723559129,9.3e-07,88789.0,88784.0,0.01126329]
[1766723559425,9.3e-07,88789.0,88785.0,0.01126316]
[1766723560299,9.3e-07,88789.0,88784.0,0.01126329]
[1766723560907,9.3e-07,88789.0,88781.0,0.01126367]
[1766723561268,9.3e-07,88789.0,88782.0,0.01126354]
[1766723561818,9.3e-07,88789.0,88781.0,0.01126367]
[1766723561958,9.3e-07,88789.0,88780.0,0.01126379]
[1766723561959,9.3e-07,88789.0,88779.0,0.13293]
[1766723562165,9.3e-07,88789.0,88779.0,0.54666332]
[1766723562810,0.01126358,88789.0,88780.0,0.01126379]
[1766723563001,9.3e-07,88789.0,88780.0,0.12491379]
[1766723563162,9.3e-07,88789.0,88781.0,0.01126367]
[1766723563617,9.3e-07,88789.0,88780.0,0.12491379]
[1766723563832,9.3e-07,88789.0,88781.0,0.01126367]
[1766723564541,9.3e-07,88789.0,88785.0,0.01126316]
[1766723564706,9.3e-07,88789.0,88786.0,0.06757821]
[1766723565107,9.3e-07,88793.0,88790.0,0.11779]
[1766723565305,9.3e-07,88793.0,88790.0,0.12905252]
[1766723565517,9.3e-07,88793.0,88790.0,0.11779]
[1766723565709,9.3e-07,88793.0,88789.0,0.01126265]
[1766723565906,9.3e-07,88793.0,88787.0,0.01126291]
[1766723566105,9.3e-07,88793.0,88788.0,0.01126278]
[1766723566768,9.3e-07,88793.0,88789.0,0.01126265]
[1766723567529,9.3e-07,88793.0,88790.0,0.01126252]
[1766723567738,9.3e-07,88793.0,88789.0,0.06757582]
[1766723568096,9.3e-07,88793.0,88790.0,0.01126252]
[1766723568590,9.3e-07,88793.0,88789.0,0.06757582]
[1766723568792,9.3e-07,88793.0,88790.0,0.01126252]
[1766723569434,9.3e-07,88793.0,88789.0,0.18536582]
[1766723569837,9.3e-07,88793.0,88789.0,0.11779]
[1766723570037,9.3e-07,88793.0,88789.0,0.12905265]
[1766723570405,9.3e-07,88793.0,88790.0,0.01126252]
[1766723570842,9.3e-07,88793.0,88789.0,0.12905265]
[1766723571261,9.3e-07,88793.0,88791.0,0.05631201]
[1766723571466,9.3e-07,88793.0,88790.0,0.01126252]
[1766723571843,9.3e-07,88793.0,88792.0,0.05631137]
[1766723572538,9.3e-07,88793.0,88790.0,0.01126252]
[1766723573199,9.3e-07,88795.0,88790.0,0.06757474]
[1766723573345,9.3e-07,88795.0,88786.0,0.07885792]
[1766723573527,9.3e-07,88795.0,88789.0,0.01126265]
[1766723574330,9.3e-07,88795.0,88786.0,0.07885792]
[1766723574532,9.3e-07,88795.0,88789.0,0.01126265]
[1766723574737,9.3e-07,88795.0,88788.0,0.01126278]
[1766723575548,9.3e-07,88795.0,88790.0,0.01126252]
[1766723575955,9.3e-07,88795.0,88789.0,0.01126265]
[1766723576948,9.3e-07,88795.0,88790.0,0.01126252]
[1766723577173,9.3e-07,88795.0,88789.0,0.01126265]
[1766723578568,9.3e-07,88795.0,88790.0,0.01126252]
[1766723579794,9.3e-07,88795.0,88789.0,0.01126265]
[1766723580545,9.3e-07,88795.0,88790.0,0.01126252]
[1766723580750,9.3e-07,88795.0,88791.0,0.0112624]
[1766723580946,0.01126265,88789.0,88780.0,0.41793954]
[1766723581187,0.01126265,88789.0,88781.0,0.01128]
[1766723581368,0.01126252,88790.0,88781.0,0.01128]
[1766723581707,0.01126278,88788.0,88781.0,0.12907]
[1766723581874,0.01126265,88789.0,88781.0,0.12907]
[1766723582673,0.01126252,88790.0,88781.0,0.12907]
[1766723583211,0.01126265,88789.0,88781.0,0.12907]
[1766723584130,0.01126278,88788.0,88781.0,0.12907]
[1766723584333,0.01126265,88789.0,88781.0,0.12907]
[1766723584462,0.01126291,88787.0,88781.0,0.12907]
[1766723584656,0.05631246,88791.0,88781.0,0.12907]
[1766723584657,0.00470694,88804.0,88781.0,0.128521]
[1766723584863,0.02264926,88797.0,88787.0,0.01126291]
[1766723585119,0.02264926,88797.0,88786.0,0.01126303]
[1766723585315,0.01138762,88797.0,88788.0,0.01126278]
[1766723585458,0.01138762,88797.0,88789.0,0.01126265]
[1766723585874,0.01138762,88797.0,88789.0,0.12905265]
[1766723586047,0.01138762,88797.0,88789.0,0.11779]
[1766723586246,0.01138762,88797.0,88789.0,0.12905265]
[1766723586453,0.01138762,88797.0,88789.0,0.11779]
[1766723587639,0.00010762,88797.0,88792.0,0.06757364]
[1766723587838,0.0002,88798.0,88797.0,0.00044138]
[1766723588041,0.00028885,88798.0,88797.0,0.00044138]
[1766723588382,0.00028885,88798.0,88795.0,0.01126189]
[1766723588569,0.0002,88804.0,88799.0,0.11779]
[1766723588770,0.00055857,88804.0,88799.0,0.12905138]
[1766723589074,0.00055857,88804.0,88799.0,0.11779]
[1766723589278,0.00055857,88804.0,88801.0,0.01126113]
[1766723590041,0.00011757,88804.0,88801.0,0.01126113]
[1766723590248,0.00011757,88804.0,88801.0,0.06756638]
[1766723590827,0.00011757,88804.0,88801.0,0.01126113]
[1766723591030,0.00011757,88804.0,88802.0,0.11779]
[1766723591685,0.00011757,88804.0,88803.0,0.0563044]
[1766723592043,0.01128,88812.0,88805.0,0.01126062]
[1766723592248,0.000549,88805.0,88804.0,0.11779]
[1766723592564,0.01128,88812.0,88804.0,0.12905075]
[1766723593154,0.01128,88812.0,88805.0,0.01126062]
[1766723593990,0.01128,88812.0,88806.0,0.0112605]
[1766723594192,0.01128,88812.0,88805.0,0.13273062]
[1766723595182,0.01128,88812.0,88806.0,0.0112605]
[1766723596245,0.01125923,88816.0,88806.0,0.1327305]
[1766723596447,0.01125923,88816.0,88808.0,0.12147]
[1766723597183,0.01128,88817.0,88808.0,0.13273024]
[1766723597385,0.01128,88817.0,88808.0,0.12147]
[1766723597590,0.01128,88817.0,88810.0,0.01125999]
[1766723597789,0.02427281,88821.0,88813.0,0.01125961]
[1766723597988,0.0113474,88821.0,88812.0,0.01125973]
[1766723598225,0.0113474,88821.0,88813.0,0.12147]
[1766723598226,8.881e-05,88821.0,88813.0,0.12147]
[1766723598392,0.0226274,88821.0,88813.0,0.12147]
[1766723598574,0.01125872,88820.0,88813.0,0.12147]
[1766723598778,0.0226274,88821.0,88813.0,0.12147]
[1766723599074,0.01125897,88818.0,88813.0,0.12147]
[1766723599274,0.01125885,88819.0,88813.0,0.12147]
[1766723599729,0.00024482,88815.0,88813.0,0.12147]
[1766723599928,0.0112605,88806.0,88804.0,0.12147]
[1766723600081,0.00024482,88815.0,88804.0,0.12147]
[1766723600082,0.01125999,88810.0,88804.0,0.12147]
[1766723600666,0.0112605,88806.0,88798.0,0.12147]
[1766723600873,0.01126024,88808.0,88802.0,0.01128]
[1766723601103,0.01126024,88808.0,88802.0,0.13275]
[1766723602383,0.0112605,88806.0,88802.0,0.13275]
[1766723602586,0.01126024,88808.0,88802.0,0.13275]
[1766723602794,0.01126037,88807.0,88802.0,0.13275]
[1766723603661,0.01126024,88808.0,88802.0,0.13275]
[1766723603867,2.4e-07,88808.0,88802.0,0.13275]
[1766723604910,0.01126037,88807.0,88791.0,0.12147]
[1766723605070,0.01126088,88803.0,88794.0,0.12147]
[1766723605271,0.01126037,88807.0,88797.0,0.01126164]
[1766723605465,0.01126048,88808.0,88798.0,0.12147]
[1766723605678,0.01126048,88808.0,88798.0,0.40216905]
[1766723605976,0.01126048,88808.0,88799.0,0.12147]
[1766723606179,2.4e-07,88808.0,88802.0,0.12147]
[1766723606784,0.01125986,88811.0,88802.0,0.12147]
[1766723606985,0.00628,88814.0,88805.0,0.01126062]
[1766723607186,0.00628,88814.0,88806.0,0.0112605]
[1766723607398,0.00628,88814.0,88805.0,0.13273062]
[1766723607592,0.00628,88814.0,88806.0,0.0112605]
[1766723608335,0.00628,88814.0,88806.0,0.1327305]
[1766723608514,0.00628,88814.0,88806.0,0.12147]
[1766723608720,0.00628,88814.0,88806.0,0.1327305]
[1766723609275,0.00628,88814.0,88807.0,0.13273037]
[1766723609543,0.00628,88814.0,88807.0,0.12147]
[1766723610085,0.00628,88814.0,88807.0,0.13273037]
[1766723610289,0.00628,88814.0,88807.0,0.12147]
[1766723613825,0.00628,88814.0,88807.0,0.13273037]
[1766723614031,0.00628,88814.0,88808.0,0.01126024]
[1766723614229,0.00024482,88815.0,88808.0,0.12147]
[1766723614816,0.00024482,88815.0,88809.0,0.01126012]
[1766723615020,0.00024482,88815.0,88808.0,0.13273024]
[1766723615223,8.2e-07,88815.0,88810.0,0.12147]
[1766723616853,8.2e-07,88815.0,88810.0,0.121226]
[1766723617053,0.01125999,88810.0,88801.0,0.13275]
[1766723617256,8.2e-07,88815.0,88801.0,0.14401113]
[1766723617257,0.01125986,88811.0,88801.0,0.14401113]
[1766723617463,0.06755922,88811.0,88801.0,0.13275]
[1766723617665,0.01125999,88810.0,88801.0,0.13275]
[1766723617867,0.01125948,88814.0,88804.0,0.01126075]
[1766723618092,0.06755713,88815.0,88804.0,0.12147]
[1766723618291,0.01125948,88814.0,88804.0,0.12147]
[1766723618530,0.01125961,88813.0,88804.0,0.13273075]
[1766723619087,0.01125948,88814.0,88804.0,0.13273075]
[1766723619468,0.01125961,88813.0,88804.0,0.12147]
[1766723619767,0.01125961,88813.0,88804.0,0.13273075]
[1766723620309,0.01125961,88813.0,88804.0,0.12125382]
[1766723620802,0.01125973,88812.0,88804.0,0.12125382]
[1766723621432,0.01125961,88813.0,88804.0,0.12125382]
[1766723621569,0.01125973,88812.0,88804.0,0.12125382]
[1766723621771,0.01125948,88814.0,88804.0,0.13251457]
[1766723622729,8.2e-07,88815.0,88805.0,0.01126062]
[1766723623030,0.01125948,88814.0,88804.0,0.13251457]
[1766723623194,0.01126017,88815.0,88805.0,0.01126062]
[1766723623582,0.01125948,88814.0,88805.0,0.01126062]
[1766723623788,0.01125948,88814.0,88805.0,0.13361062]
[1766723624012,0.01126017,88815.0,88805.0,0.13361062]
[1766723624213,0.01126017,88815.0,88806.0,0.12099]
[1766723624416,8.2e-07,88815.0,88806.0,0.1322505]
[1766723624846,8.2e-07,88815.0,88806.0,0.12099]
[1766723625055,8.2e-07,88815.0,88806.0,0.1322505]
[1766723625419,0.01126017,88815.0,88806.0,0.12099]
[1766723626644,8.2e-07,88815.0,88806.0,0.1322505]
[1766723626843,0.01125948,88814.0,88806.0,0.12099]
[1766723627041,0.01125961,88813.0,88806.0,0.12099]
[1766723627240,0.01125948,88814.0,88806.0,0.12099]
[1766723627412,8.2e-07,88815.0,88814.0,0.000549]
[1766723627606,8.2e-07,88815.0,88806.0,0.1322505]
[1766723627844,8.2e-07,88815.0,88808.0,0.12099]
[1766723628028,0.01126017,88815.0,88808.0,0.12099]
[1766723628816,8.2e-07,88815.0,88808.0,0.12099]
[1766723629178,8.2e-07,88815.0,88806.0,0.0112605]
[1766723629335,0.01126017,88815.0,88805.0,0.01126062]
[1766723629535,0.01126017,88815.0,88806.0,0.0112605]
[1766723629731,0.01125961,88813.0,88803.0,0.01126088]
[1766723629930,0.01125999,88810.0,88802.0,0.12099]
[1766723630270,0.01126024,88808.0,88802.0,0.12099]
[1766723630474,0.0675626,88807.0,88802.0,0.12099]
[1766723630677,0.01126088,88803.0,88797.0,0.01128]
[1766723630894,0.06756633,88802.0,88795.0,0.12099]
[1766723631126,0.01126126,88800.0,88795.0,0.12099]
[1766723631527,0.01126113,88801.0,88795.0,0.12099]
[1766723631892,3.16e-06,88806.0,88795.0,0.12099]
[1766723632096,3.16e-06,88806.0,88802.0,0.12099]
[1766723636549,3.16e-06,88806.0,88804.0,0.12099]
[1766723636753,0.01128082,88815.0,88807.0,0.05630186]
[1766723636953,0.01128082,88815.0,88808.0,0.12099]
[1766723637129,8.2e-07,88815.0,88808.0,0.13225024]
[1766723637341,0.01128082,88815.0,88809.0,0.13225012]
[1766723637518,0.01128082,88815.0,88809.0,0.12099]
[1766723640677,0.01125961,88813.0,88809.0,0.12099]
[1766723640874,0.01125986,88811.0,88801.0,0.12099]
[1766723641261,0.01125999,88810.0,88801.0,0.12099]
[1766723642530,0.01126012,88809.0,88801.0,0.12099]
[1766723642750,0.01125999,88810.0,88801.0,0.12099]
[1766723643289,0.01125999,88810.0,88801.0,0.13225113]
[1766723643445,0.41338422,88811.0,88801.0,0.13225113]
[1766723643651,0.01125999,88810.0,88801.0,0.12099]
[1766723644388,0.41338422,88811.0,88801.0,0.12099]
[1766723644879,0.41338422,88811.0,88801.0,0.13225113]
[1766723645267,0.41338422,88811.0,88803.0,0.12099]
[1766723645593,0.01125986,88811.0,88803.0,0.12099]
[1766723646942,0.01126062,88805.0,88797.0,0.12099]
[1766723647165,0.01355082,88810.0,88797.0,0.12099]
[1766723647166,0.01126024,88808.0,88797.0,0.12099]
[1766723647415,0.06756198,88808.0,88797.0,0.12099]
[1766723647610,0.01126037,88807.0,88797.0,0.12099]
[1766723648009,0.01126037,88807.0,88797.0,0.13225164]
[1766723648180,0.01126024,88808.0,88800.0,0.12099]
[1766723648416,0.01126012,88809.0,88800.0,0.12099]
[1766723648880,0.01126075,88804.0,88800.0,0.12099]
[1766723649074,0.01126075,88804.0,88793.0,0.05631042]
[1766723649075,0.01126138,88799.0,88787.0,0.01126291]
[1766723649299,0.01126088,88803.0,88793.0,0.12099]
[1766723649300,0.40212436,88800.0,88793.0,0.12099]
[1766723649503,0.41338524,88803.0,88793.0,0.12099]
[1766723649751,0.01126075,88804.0,88794.0,0.13225202]
[1766723650120,0.41338511,88804.0,88794.0,0.13225202]
[1766723650444,0.40212436,88804.0,88795.0,0.06757094]
[1766723650598,0.40212436,88804.0,88796.0,0.01126176]
[1766723650802,0.01128,88805.0,88796.0,0.01126176]
[1766723651067,0.01128,88805.0,88797.0,0.01126164]
[1766723651274,0.01128,88805.0,88796.0,0.13225176]
[1766723651502,0.01128,88805.0,88797.0,0.01126164]
[1766723651695,0.02254062,88805.0,88796.0,0.12099]
[1766723652108,0.01128,88804.0,88798.0,0.12099]
[1766723653400,0.01128,88804.0,88798.0,0.13225151]
[1766723653610,0.01128,88804.0,88798.0,0.12099]
[1766723653807,0.01128,88804.0,88798.0,0.13225151]
[1766723654201,0.01128,88804.0,88799.0,0.01126138]
[1766723654515,0.01128,88804.0,88798.0,0.13225151]
[1766723654516,0.010731,88804.0,88798.0,0.13225151]
[1766723654717,1e-06,88804.0,88800.0,0.11419]
[1766723654899,1e-06,88804.0,88800.0,0.12545126]
[1766723655107,0.01128,88805.0,88802.0,0.11419]
[1766723655268,0.42693517,88810.0,88802.0,0.11419]
[1766723655269,0.01128,88806.0,88802.0,0.11419]
[1766723655468,0.41567518,88810.0,88802.0,0.11419]